fUSD/lending_fUSD_20250504
["ID","MTS","AMOUNT","RATE_DAILY","PERIOD"]
[359802228,1746354642459,-2592.31,0.00019726,2]
[359802230,1746354642469,-450.0,0.00019726,2]
[359802232,1746354642478,-450.0,0.00019726,2]
[359802234,1746354642488,-450.0,0.00019726,2]
[359802236,1746354642497,-450.0,0.00019726,2]
[359802238,1746354642507,-660.02,0.00019726,2]
[359802240,1746354642516,-2707.58,0.00019726,2]
[359802242,1746354642526,-450.0,0.00019726,2]
[359802244,1746354642535,-450.0,0.00019726,2]
[359802246,1746354642544,-1830.81,0.00019726,2]
[359802248,1746354642553,-450.0,0.00019726,2]
[359802250,1746354642563,-450.0,0.00019726,2]
[359802252,1746354642572,-450.0,0.00019726,2]
[359802255,1746354642581,-450.0,0.00019726,2]
[359802256,1746354642591,-454.4,0.00019726,2]
[359802257,1746354642600,-2161.04,0.00019726,2]
[359802258,1746354642609,-1088.97,0.00019726,2]
[359802259,1746354642619,-450.0,0.00019726,2]
[359802260,1746354642629,-450.0,0.00019726,2]
[359802261,1746354642638,-450.0,0.00019726,2]
[359802262,1746354642647,-592.93,0.00019726,2]
[359802263,1746354642657,-450.0,0.00019726,2]
[359802264,1746354642667,-49199.68,0.00019726,2]
[359802266,1746354642676,-695.53,0.00019726,2]
[359802268,1746354642686,-450.0,0.00019726,2]
[359802270,1746354642695,-450.0,0.00019726,2]
[359802272,1746354642704,-450.0,0.00019726,2]
[359802274,1746354642714,-169.00868661,0.00019726,2]
[359802276,1746354642724,-674.33,0.00019726,2]
[359802278,1746354642733,-450.0,0.00019726,2]
[359802280,1746354642742,-672.02,0.00019726,2]
[359802282,1746354642752,-450.0,0.00019726,2]
[359802284,1746354642761,-2770.43,0.00019726,2]
[359802286,1746354642771,-450.0,0.00019726,2]
[359802288,1746354642780,-504.08,0.00019726,2]
[359802290,1746354642789,-450.0,0.00019726,2]
[359802292,1746354642798,-450.0,0.00019726,2]
[359802294,1746354642807,-12852.67,0.00019726,2]
[359802296,1746354642817,-316.64577214,0.00019726,2]
[359802298,1746354642826,-1289.4,0.00019726,2]
[359802300,1746354642835,-450.0,0.00019726,2]
[359802302,1746354642845,-466.18,0.00019726,2]
[359802304,1746354642855,-895.63,0.00019726,2]
[359802306,1746354642864,-450.0,0.00019726,2]
[359802308,1746354642873,-1000.82,0.00019726,2]
[359802310,1746354642883,-450.0,0.00019726,2]
[359802312,1746354642892,-897.13,0.00019726,2]
[359802314,1746354642901,-497.28,0.00019726,2]
[359802316,1746354642910,-450.0,0.00019726,2]
[359802318,1746354642920,-450.0,0.00019726,2]
[359802320,1746354642929,-450.0,0.00019726,2]
[359802322,1746354642938,-590.47,0.00019726,2]
[359802324,1746354642947,-7759.05,0.00019726,2]
[359802326,1746354642956,-450.0,0.00019726,2]
[359802328,1746354642965,-450.0,0.00019726,2]
[359802330,1746354642974,-450.0,0.00019726,2]
[359802332,1746354642983,-612.46,0.00019726,2]
[359802334,1746354642992,-450.0,0.00019726,2]
[359802359,1746354643223,-667.67,0.00019726,2]
[359802361,1746354643233,-450.0,0.00019726,2]
[359802363,1746354643243,-450.0,0.00019726,2]
[359802365,1746354643253,-1233.56,0.00019726,2]
[359802367,1746354643263,-450.0,0.00019726,2]
[359802369,1746354643272,-450.0,0.00019726,2]
[359802371,1746354643281,-450.0,0.00019726,2]
[359802373,1746354643290,-450.0,0.00019726,2]
[359802375,1746354643299,-450.0,0.00019726,2]
[359802377,1746354643308,-283.41,0.00019726,2]
[359802379,1746354643318,-909.97,0.00019726,2]
[359802381,1746354643328,-539.78,0.00019726,2]
[359802383,1746354643337,-561.77,0.00019726,2]
[359802385,1746354643347,-450.0,0.00019726,2]
[359802387,1746354643356,-450.0,0.00019726,2]
[359802389,1746354643365,-450.0,0.00019726,2]
[359802391,1746354643375,-604.85,0.00019726,2]
[359802393,1746354643384,-450.0,0.00019726,2]
[359802395,1746354643393,-450.0,0.00019726,2]
[359802397,1746354643403,-450.0,0.00019726,2]
[359802398,1746354643412,-450.0,0.00019726,2]
[359802400,1746354643423,-450.0,0.00019726,2]
[359802402,1746354643433,-450.0,0.00019726,2]
[359802404,1746354643444,-450.0,0.00019726,2]
[359802406,1746354643453,-520.23321647,0.00019726,2]
[359802408,1746354643462,-450.0,0.00019726,2]
[359802410,1746354643471,-450.0,0.00019726,2]
[359802412,1746354643481,-450.0,0.00019726,2]
[359802414,1746354643490,-653.03,0.00019726,2]
[359802416,1746354643499,-814.73,0.00019726,2]
[359802418,1746354643508,-450.0,0.00019726,2]
[359802419,1746354643520,-3980.47,0.00019726,2]
[359802421,1746354643530,-450.0,0.00019726,2]
[359802424,1746354643539,-450.0,0.00019726,2]
[359802425,1746354643548,-450.0,0.00019726,2]
[359802427,1746354643557,-220.31,0.00019726,2]
[359802429,1746354643566,-161.78,0.00019726,2]
[359802431,1746354643576,-221.05,0.00019726,2]
[359802433,1746354643586,-450.0,0.00019726,2]
[359802435,1746354643595,-450.0,0.00019726,2]
[359802437,1746354643605,-450.0,0.00019726,2]
[359802439,1746354643614,-426.86,0.00019726,2]
[359802441,1746354643623,-450.0,0.00019726,2]
[359802443,1746354643633,-450.67,0.00019726,2]
[359802445,1746354643642,-188.91180155,0.00019726,2]
[359802447,1746354643651,-450.0,0.00019726,2]
[359802449,1746354643661,-450.0,0.00019726,2]
[359802451,1746354643671,-1170.54,0.00019726,2]
[359802453,1746354643681,-450.0,0.00019726,2]
[359802454,1746354643690,-450.0,0.00019726,2]
[359802456,1746354643699,-450.0,0.00019726,2]
[359802458,1746354643710,-60035.46,0.00019726,2]
[359802460,1746354643719,-450.0,0.00019726,2]
[359802462,1746354643729,-450.0,0.00019726,2]
[359802464,1746354643738,-3755.93,0.00019726,2]
[359802466,1746354643747,-450.0,0.00019726,2]
[359802468,1746354643756,-450.0,0.00019726,2]
[359802470,1746354643766,-450.0,0.00019726,2]
[359802472,1746354643775,-362.96,0.00019726,2]
[359802474,1746354643785,-450.0,0.00019726,2]
[359802475,1746354643794,-450.0,0.00019726,2]
[359802477,1746354643803,-171.20750357,0.00019726,2]
[359802479,1746354643813,-450.0,0.00019726,2]
[359802481,1746354643822,-450.0,0.00019726,2]
[359802483,1746354643831,-450.0,0.00019726,2]
[359802485,1746354643841,-153.29513429,0.00019726,2]
[359802487,1746354643850,-1072.75,0.00019726,2]
[359802489,1746354643860,-176.66136161,0.00019726,2]
[359802491,1746354643869,-290.817412,0.00019726,2]
[359802492,1746354643879,-2808.39,0.00019726,2]
[359802494,1746354643888,-450.0,0.00019726,2]
[359802496,1746354643897,-215.91342741,0.00019726,2]
[359802498,1746354643906,-450.0,0.00019726,2]
[359802500,1746354643915,-533.79,0.00019726,2]
[359802502,1746354643924,-501.96,0.00019726,2]
[359802504,1746354643933,-478.94,0.00019726,2]
[359802506,1746354643946,-450.0,0.00019726,2]
[359802508,1746354643956,-450.0,0.00019726,2]
[359802510,1746354643965,-849.522957,0.00019726,2]
[359802513,1746354643975,-450.0,0.00019726,2]
[359802515,1746354643984,-2404.6,0.00019726,2]
[359802516,1746354643993,-450.0,0.00019726,2]
[359802517,1746354644003,-215.495523,0.00019726,2]
[359802518,1746354644013,-450.0,0.00019726,2]
[359802519,1746354644022,-450.0,0.00019726,2]
[359802520,1746354644032,-450.0,0.00019726,2]
[359802521,1746354644041,-1193.26,0.00019726,2]
[359802522,1746354644051,-450.0,0.00019726,2]
[359802524,1746354644060,-450.0,0.00019726,2]
[359802526,1746354644071,-530.0196171,0.00019726,2]
[359802528,1746354644081,-450.0,0.00019726,2]
[359802530,1746354644090,-450.0,0.00019726,2]
[359802532,1746354644099,-450.0,0.00019726,2]
[359802534,1746354644109,-450.0,0.00019726,2]
[359802536,1746354644118,-950.35,0.00019726,2]
[359802538,1746354644128,-5011.88520432,0.00019737,2]
[359802540,1746354644137,-166.36393352,0.0001974,2]
[359802542,1746354644146,-2555.56244853,0.0001974,2]
[359802544,1746354644156,-220.94976307,0.00019743,2]
[359802546,1746354644165,-500.0,0.00019752,2]
[359802548,1746354644175,-544.92357778,0.00019752,2]
[359802550,1746354644185,-500.0,0.00019752,2]
[359802552,1746354644195,-500.0,0.00019752,2]
[359802554,1746354644204,-500.0,0.00019752,2]
[359802556,1746354644213,-774.79230906,0.00019752,2]
[359802559,1746354644223,-357.7229425,0.00019753,2]
[359802561,1746354644233,-450.0,0.00019753,2]
[359802563,1746354644242,-557.02321955,0.00019753,2]
[359802565,1746354644251,-450.0,0.00019753,2]
[359802567,1746354644261,-482.85,0.00019753,2]
[359802568,1746354644270,-450.0,0.00019753,2]
[359802570,1746354644279,-450.0,0.00019753,2]
[359802572,1746354644288,-450.0,0.00019753,2]
[359802574,1746354644298,-450.0,0.00019753,2]
[359802576,1746354644307,-702.11,0.00019753,2]
[359802577,1746354644317,-470.76,0.00019753,2]
[359802578,1746354644327,-450.0,0.00019753,2]
[359802579,1746354644336,-450.0,0.00019753,2]
[359802580,1746354644345,-205.34,0.00019753,2]
[359802581,1746354644354,-450.0,0.00019753,2]
[359802582,1746354644364,-450.0,0.00019753,2]
[359802583,1746354644373,-450.0,0.00019753,2]
[359802584,1746354644382,-450.0,0.00019753,2]
[359802585,1746354644392,-450.0,0.00019753,2]
[359802586,1746354644401,-549.32,0.00019753,2]
[359802587,1746354644410,-450.0,0.00019753,2]
[359802588,1746354644421,-450.0,0.00019753,2]
[359802589,1746354644430,-450.0,0.00019753,2]
[359802591,1746354644443,-1286.3,0.00019753,2]
[359802593,1746354644452,-450.0,0.00019753,2]
[359802594,1746354644461,-298.30183192,0.00019753,2]
[359802595,1746354644470,-592.77,0.00019753,2]
[359802596,1746354644479,-450.0,0.00019753,2]
[359802597,1746354644489,-450.0,0.00019753,2]
[359802598,1746354644498,-1174.64,0.00019753,2]
[359802599,1746354644508,-450.0,0.00019753,2]
[359802600,1746354644518,-450.0,0.00019753,2]
[359802601,1746354644527,-450.0,0.00019753,2]
[359802602,1746354644536,-450.0,0.00019753,2]
[359802603,1746354644546,-586.86,0.00019753,2]
[359802604,1746354644555,-529.061361,0.00019753,2]
[359802605,1746354644565,-450.0,0.00019753,2]
[359802606,1746354644574,-581.97369639,0.00019753,2]
[359802607,1746354644583,-450.0,0.00019753,2]
[359802608,1746354644593,-450.0,0.00019753,2]
[359802609,1746354644602,-450.0,0.00019753,2]
[359802610,1746354644611,-450.0,0.00019753,2]
[359802611,1746354644621,-177.40331515,0.00019753,2]
[359802612,1746354644630,-450.0,0.00019753,2]
[359802613,1746354644640,-450.0,0.00019753,2]
[359802614,1746354644649,-450.0,0.00019753,2]
[359802615,1746354644659,-620.66,0.00019753,2]
[359802616,1746354644669,-450.0,0.00019753,2]
[359802617,1746354644679,-450.0,0.00019753,2]
[359802618,1746354644688,-450.0,0.00019753,2]
[359802619,1746354644697,-450.0,0.00019753,2]
[359802620,1746354644706,-848.66,0.00019753,2]
[359802621,1746354644716,-450.0,0.00019753,2]
[359802622,1746354644725,-450.0,0.00019753,2]
[359802623,1746354644735,-530.76,0.00019753,2]
[359802624,1746354644744,-450.0,0.00019753,2]
[359802625,1746354644753,-450.0,0.00019753,2]
[359802626,1746354644763,-450.0,0.00019753,2]
[359802627,1746354644772,-538.28,0.00019753,2]
[359802628,1746354644782,-450.0,0.00019753,2]
[359802629,1746354644792,-532.81,0.00019753,2]
[359802630,1746354644801,-450.0,0.00019753,2]
[359802631,1746354644811,-2592.31,0.00019753,2]
[359802632,1746354644820,-450.0,0.00019753,2]
[359802633,1746354644831,-456.77347407,0.00019753,2]
[359802634,1746354644840,-450.0,0.00019753,2]
[359802635,1746354644850,-450.0,0.00019753,2]
[359802636,1746354644861,-660.02,0.00019753,2]
[359802637,1746354644871,-2707.58,0.00019753,2]
[359802638,1746354644881,-450.0,0.00019753,2]
[359802639,1746354644890,-450.0,0.00019753,2]
[359802640,1746354644901,-1830.81,0.00019753,2]
[359802641,1746354644912,-547.91118373,0.00019753,2]
[359802642,1746354644922,-450.0,0.00019753,2]
[359802643,1746354644932,-450.0,0.00019753,2]
[359802644,1746354644941,-450.0,0.00019753,2]
[359802645,1746354644951,-454.4,0.00019753,2]
[359802646,1746354644960,-2161.04,0.00019753,2]
[359802647,1746354644970,-1088.97,0.00019753,2]
[359802648,1746354644979,-450.0,0.00019753,2]
[359802649,1746354644988,-450.0,0.00019753,2]
[359802650,1746354644997,-450.0,0.00019753,2]
[359802651,1746354645006,-450.0,0.00019753,2]
[359802652,1746354645015,-49199.68,0.00019753,2]
[359802653,1746354645027,-695.53,0.00019753,2]
[359802654,1746354645038,-450.0,0.00019753,2]
[359802655,1746354645049,-450.0,0.00019753,2]
[359802656,1746354645059,-450.0,0.00019753,2]
[359802657,1746354645069,-156.13100633,0.00019753,2]
[359802658,1746354645078,-674.33,0.00019753,2]
[359802659,1746354645087,-450.0,0.00019753,2]
[359802660,1746354645097,-672.02,0.00019753,2]
[359802661,1746354645106,-2770.43,0.00019753,2]
[359802662,1746354645115,-242.43876096,0.00019753,2]
[359802663,1746354645127,-450.0,0.00019753,2]
[359802664,1746354645138,-450.0,0.00019753,2]
[359802665,1746354645148,-12852.67,0.00019753,2]
[359802666,1746354645157,-1289.4,0.00019753,2]
[359802667,1746354645166,-186.77213404,0.00019753,2]
[359802668,1746354645176,-895.63,0.00019753,2]
[359802669,1746354645185,-1000.82,0.00019753,2]
[359802670,1746354645194,-450.0,0.00019753,2]
[359802671,1746354645203,-897.13,0.00019753,2]
[359802672,1746354645213,-450.0,0.00019753,2]
[359802673,1746354645224,-590.47,0.00019753,2]
[359802674,1746354645233,-7759.05,0.00019753,2]
[359802675,1746354645243,-450.0,0.00019753,2]
[359802676,1746354645253,-450.0,0.00019753,2]
[359802677,1746354645262,-450.0,0.00019753,2]
[359802678,1746354645270,-612.46,0.00019753,2]
[359802679,1746354645280,-450.0,0.00019753,2]
[359802680,1746354645289,-667.67,0.00019753,2]
[359802681,1746354645298,-467.27,0.00019753,2]
[359802682,1746354645307,-1233.56,0.00019753,2]
[359802683,1746354645318,-450.0,0.00019753,2]
[359802684,1746354645329,-450.0,0.00019753,2]
[359802685,1746354645339,-526.94,0.00019753,2]
[359802686,1746354645349,-450.0,0.00019753,2]
[359802687,1746354645358,-450.0,0.00019753,2]
[359802688,1746354645367,-539.78,0.00019753,2]
[359802689,1746354645376,-909.97,0.00019753,2]
[359802690,1746354645385,-450.0,0.00019753,2]
[359802691,1746354645394,-450.0,0.00019753,2]
[359802692,1746354645403,-450.0,0.00019753,2]
[359802693,1746354645412,-604.85,0.00019753,2]
[359802694,1746354645422,-450.0,0.00019753,2]
[359802695,1746354645431,-450.0,0.00019753,2]
[359802696,1746354645444,-450.0,0.00019753,2]
[359802697,1746354645454,-450.0,0.00019753,2]
[359802698,1746354645464,-450.0,0.00019753,2]
[359802699,1746354645473,-450.0,0.00019753,2]
[359802700,1746354645484,-450.0,0.00019753,2]
[359802701,1746354645493,-450.0,0.00019753,2]
[359802702,1746354645503,-270.71,0.00019753,2]
[359802703,1746354645513,-653.03,0.00019753,2]
[359802704,1746354645522,-814.73,0.00019753,2]
[359802705,1746354645532,-450.0,0.00019753,2]
[359802706,1746354645541,-3980.47,0.00019753,2]
[359802707,1746354645550,-450.0,0.00019753,2]
[359802708,1746354645559,-450.0,0.00019753,2]
[359802709,1746354645569,-450.0,0.00019753,2]
[359802710,1746354645578,-450.0,0.00019753,2]
[359802711,1746354645588,-450.0,0.00019753,2]
[359802712,1746354645597,-450.0,0.00019753,2]
[359802713,1746354645606,-590.26,0.00019753,2]
[359802714,1746354645615,-450.67,0.00019753,2]
[359802715,1746354645625,-450.0,0.00019753,2]
[359802716,1746354645634,-450.0,0.00019753,2]
[359802717,1746354645643,-1170.54,0.00019753,2]
[359802718,1746354645653,-458.8,0.00019753,2]
[359802719,1746354645662,-450.0,0.00019753,2]
[359802720,1746354645673,-450.0,0.00019753,2]
[359802721,1746354645683,-60035.46,0.00019753,2]
[359802722,1746354645693,-592.46871297,0.00019753,2]
[359802723,1746354645702,-450.0,0.00019753,2]
[359802724,1746354645712,-3755.93,0.00019753,2]
[359802725,1746354645721,-450.0,0.00019753,2]
[359802726,1746354645731,-450.0,0.00019753,2]
[359802727,1746354645740,-450.0,0.00019753,2]
[359802728,1746354645749,-450.0,0.00019753,2]
[359802729,1746354645759,-450.0,0.00019753,2]
[359802730,1746354645769,-450.0,0.00019753,2]
[359802731,1746354645778,-450.0,0.00019753,2]
[359802732,1746354645788,-1072.75,0.00019753,2]
[359802733,1746354645798,-290.817412,0.00019753,2]
[359802734,1746354645807,-2808.39,0.00019753,2]
[359802735,1746354645817,-450.0,0.00019753,2]
[359802737,1746354645826,-450.0,0.00019753,2]
[359802738,1746354645836,-501.96,0.00019753,2]
[359802739,1746354645845,-450.0,0.00019753,2]
[359802740,1746354645855,-450.0,0.00019753,2]
[359802741,1746354645864,-450.0,0.00019753,2]
[359802742,1746354645873,-849.522957,0.00019753,2]
[359802743,1746354645883,-2404.6,0.00019753,2]
[359802744,1746354645892,-450.0,0.00019753,2]
[359802745,1746354645901,-215.495523,0.00019753,2]
[359802747,1746354645911,-430.64,0.00019753,2]
[359802748,1746354645921,-401.32,0.00019753,2]
[359802749,1746354645930,-1193.26,0.00019753,2]
[359802750,1746354645940,-180.14,0.00019753,2]
[359802751,1746354645949,-450.0,0.00019753,2]
[359802752,1746354645958,-450.0,0.00019753,2]
[359802753,1746354645967,-950.35,0.00019753,2]
[359802754,1746354645977,-223.80028772,0.00019756,2]
[359802755,1746354645986,-171.79623947,0.00019763,2]
[359802756,1746354645995,-5011.88520432,0.00019769,2]
[359802757,1746354646004,-166.0049904,0.00019773,2]
[359802758,1746354646014,-167.31132903,0.00019773,2]
[359802759,1746354646023,-500.0,0.00019773,2]
[359802760,1746354646033,-500.0,0.00019773,2]
[359802761,1746354646042,-500.0,0.00019773,2]
[359802762,1746354646051,-523.45807803,0.00019773,2]
[359802763,1746354646061,-500.0,0.00019773,2]
[359802764,1746354646070,-160.43340472,0.00019773,2]
[359802765,1746354646079,-501.06525167,0.00019773,2]
[359802766,1746354646091,-500.0,0.00019773,2]
[359802767,1746354646100,-163.05753432,0.00019773,2]
[359802769,1746354646109,-500.0,0.00019773,2]
[359802770,1746354646119,-608.63623187,0.00019773,2]
[359802771,1746354646128,-182.37048853,0.00019773,2]
[359802772,1746354646138,-161.57998144,0.00019773,2]
[359802773,1746354646147,-500.0,0.00019773,2]
[359802774,1746354646157,-500.0,0.00019773,2]
[359802776,1746354646166,-500.0,0.00019773,2]
[359802777,1746354646175,-502.2620654,0.00019773,2]
[359802778,1746354646184,-500.0,0.00019773,2]
[359802780,1746354646194,-500.0,0.00019773,2]
[359802781,1746354646204,-450.0,0.0001978,2]
[359802782,1746354646213,-450.0,0.0001978,2]
[359802783,1746354646223,-482.85,0.0001978,2]
[359802784,1746354646233,-450.0,0.0001978,2]
[359802785,1746354646243,-450.0,0.0001978,2]
[359802787,1746354646253,-450.0,0.0001978,2]
[359802788,1746354646262,-450.0,0.0001978,2]
[359802789,1746354646272,-702.11,0.0001978,2]
[359802790,1746354646281,-450.0,0.0001978,2]
[359802791,1746354646291,-450.0,0.0001978,2]
[359802792,1746354646300,-450.0,0.0001978,2]
[359802793,1746354646309,-450.0,0.0001978,2]
[359802794,1746354646320,-450.0,0.0001978,2]
[359802795,1746354646330,-450.0,0.0001978,2]
[359802796,1746354646339,-450.0,0.0001978,2]
[359802797,1746354646349,-549.32,0.0001978,2]
[359802798,1746354646358,-450.0,0.0001978,2]
[359802799,1746354646367,-450.0,0.0001978,2]
[359802800,1746354646376,-450.0,0.0001978,2]
[359802801,1746354646385,-1286.3,0.0001978,2]
[359802802,1746354646395,-450.0,0.0001978,2]
[359802803,1746354646404,-592.77,0.0001978,2]
[359802804,1746354646414,-450.0,0.0001978,2]
[359802805,1746354646423,-450.0,0.0001978,2]
[359802806,1746354646434,-1174.64,0.0001978,2]
[359802808,1746354646446,-450.0,0.0001978,2]
[359802810,1746354646456,-450.0,0.0001978,2]
[359802812,1746354646465,-450.0,0.0001978,2]
[359802814,1746354646474,-450.0,0.0001978,2]
[359802816,1746354646484,-450.0,0.0001978,2]
[359802818,1746354646493,-450.0,0.0001978,2]
[359802820,1746354646503,-450.0,0.0001978,2]
[359802822,1746354646513,-450.0,0.0001978,2]
[359802825,1746354646523,-450.0,0.0001978,2]
[359802828,1746354646532,-450.0,0.0001978,2]
[359802831,1746354646542,-450.0,0.0001978,2]
[359802834,1746354646551,-354.53562229,0.0001978,2]
[359802836,1746354646561,-620.66,0.0001978,2]
[359802838,1746354646571,-450.0,0.0001978,2]
[359802840,1746354646581,-450.0,0.0001978,2]
[359802843,1746354646590,-450.0,0.0001978,2]
[359802846,1746354646599,-450.0,0.0001978,2]
[359802849,1746354646609,-848.66,0.0001978,2]
[359802851,1746354646618,-450.0,0.0001978,2]
[359802854,1746354646628,-450.0,0.0001978,2]
[359802856,1746354646637,-530.76,0.0001978,2]
[359802858,1746354646648,-450.0,0.0001978,2]
[359802860,1746354646657,-170.75219859,0.0001978,2]
[359802862,1746354646667,-450.0,0.0001978,2]
[359802864,1746354646676,-538.28,0.0001978,2]
[359802866,1746354646686,-450.0,0.0001978,2]
[359802868,1746354646695,-532.81,0.0001978,2]
[359802870,1746354646705,-450.0,0.0001978,2]
[359802872,1746354646714,-2592.31,0.0001978,2]
[359802874,1746354646724,-450.0,0.0001978,2]
[359802876,1746354646733,-450.0,0.0001978,2]
[359802878,1746354646742,-450.0,0.0001978,2]
[359802880,1746354646751,-660.02,0.0001978,2]
[359802882,1746354646761,-2707.58,0.0001978,2]
[359802885,1746354646771,-450.0,0.0001978,2]
[359802887,1746354646780,-450.0,0.0001978,2]
[359802889,1746354646789,-1830.81,0.0001978,2]
[359802891,1746354646799,-450.0,0.0001978,2]
[359802893,1746354646808,-450.0,0.0001978,2]
[359802895,1746354646817,-450.0,0.0001978,2]
[359802897,1746354646827,-454.4,0.0001978,2]
[359802899,1746354646836,-2161.04,0.0001978,2]
[359802901,1746354646846,-1088.97,0.0001978,2]
[359802903,1746354646855,-450.0,0.0001978,2]
[359802905,1746354646865,-450.0,0.0001978,2]
[359802907,1746354646875,-450.0,0.0001978,2]
[359802909,1746354646884,-450.0,0.0001978,2]
[359802911,1746354646893,-49199.68,0.0001978,2]
[359802913,1746354646903,-695.53,0.0001978,2]
[359802915,1746354646912,-450.0,0.0001978,2]
[359802917,1746354646921,-450.0,0.0001978,2]
[359802919,1746354646931,-450.0,0.0001978,2]
[359802921,1746354646940,-674.33,0.0001978,2]
[359802924,1746354646949,-450.0,0.0001978,2]
[359802926,1746354646959,-672.02,0.0001978,2]
[359802928,1746354646969,-2770.43,0.0001978,2]
[359802930,1746354646978,-450.0,0.0001978,2]
[359802932,1746354646988,-450.0,0.0001978,2]
[359802934,1746354646997,-12852.67,0.0001978,2]
[359802936,1746354647006,-1289.4,0.0001978,2]
[359802938,1746354647016,-895.63,0.0001978,2]
[359802940,1746354647025,-1000.82,0.0001978,2]
[359802942,1746354647034,-450.0,0.0001978,2]
[359802944,1746354647044,-897.13,0.0001978,2]
[359802946,1746354647054,-564.92,0.0001978,2]
[359802948,1746354647063,-590.47,0.0001978,2]
[359802950,1746354647072,-7759.05,0.0001978,2]
[359802952,1746354647082,-450.0,0.0001978,2]
[359802954,1746354647091,-450.0,0.0001978,2]
[359802956,1746354647101,-450.0,0.0001978,2]
[359802958,1746354647110,-612.46,0.0001978,2]
[359802960,1746354647120,-450.0,0.0001978,2]
[359802962,1746354647129,-667.67,0.0001978,2]
[359802964,1746354647139,-1233.56,0.0001978,2]
[359802967,1746354647149,-450.0,0.0001978,2]
[359802969,1746354647159,-450.0,0.0001978,2]
[359802990,1746354647346,-481.66556011,0.0001978,2]
[359802992,1746354647356,-528.64,0.0001978,2]
[359802994,1746354647365,-539.78,0.0001978,2]
[359802996,1746354647374,-909.97,0.0001978,2]
[359802999,1746354647384,-561.1557368,0.0001978,2]
[359803000,1746354647394,-450.0,0.0001978,2]
[359803003,1746354647403,-588.87,0.0001978,2]
[359803005,1746354647413,-604.85,0.0001978,2]
[359803007,1746354647422,-450.0,0.0001978,2]
[359803009,1746354647432,-450.0,0.0001978,2]
[359803011,1746354647446,-450.0,0.0001978,2]
[359803013,1746354647455,-284.02682808,0.0001978,2]
[359803015,1746354647464,-450.0,0.0001978,2]
[359803017,1746354647473,-450.0,0.0001978,2]
[359803019,1746354647484,-450.0,0.0001978,2]
[359803021,1746354647493,-333.94,0.0001978,2]
[359803023,1746354647502,-653.03,0.0001978,2]
[359803025,1746354647513,-814.73,0.0001978,2]
[359803027,1746354647523,-450.0,0.0001978,2]
[359803029,1746354647532,-3980.47,0.0001978,2]
[359803031,1746354647542,-450.0,0.0001978,2]
[359803033,1746354647551,-450.0,0.0001978,2]
[359803035,1746354647560,-450.0,0.0001978,2]
[359803037,1746354647569,-450.0,0.0001978,2]
[359803039,1746354647579,-450.0,0.0001978,2]
[359803041,1746354647589,-450.0,0.0001978,2]
[359803043,1746354647598,-450.67,0.0001978,2]
[359803045,1746354647608,-450.0,0.0001978,2]
[359803047,1746354647618,-450.0,0.0001978,2]